Cogmind - Beta 9.6 @@@ ROGUE MODE // 2020.05.19 @ 00:11:58 Player: Nivek Result: Destroyed by G-34 Mercenary with Small Laser Performance ------------- Evolutions (1) 500 Regions Visited (2) 400 Robots Destroyed (60) 300 Value Destroyed (1229) 1229 Prototype IDs (1) 20 Alien Tech Used (0) 0 Bonus (16) 16 TOTAL SCORE: 2465 Bonus ------- High Alert Combat Kills 16 Cogmind --------- Core Integrity 0/400 Matter 92/400 Energy 679/830 System Corruption 0% Temperature Cool (324) Movement Rolling (90) Ox1 Location -9/Materials Parts ------- > --- POWER (2) -------- Ion Engine Heavy Ion Engine > --- PROPULSION (2) --- Wheel Wheel > --- UTILITY (3) ------ High-capacity Battery Medium Matter Pod Advanced Targeting Computer > --- WEAPON (2) ------- Flak Cannon Flak Cannon > --- INVENTORY (4) ---- Improved Light Cannon Peak State ------------ > --- POWER ------------ Ion Engine Heavy Ion Engine > --- PROPULSION ------- Wheel Wheel > --- UTILITY ---------- High-capacity Battery Medium Matter Pod Advanced Targeting Computer > --- WEAPON ----------- Flak Cannon Flak Cannon > --- INVENTORY -------- Improved Light Cannon [Rating: 17] Favorites ----------- Power Light Ion Engine Engine Light Ion Engine Propulsion Aluminum Leg Treads Light Treads Leg Aluminum Leg Wheel Wheel Flight Unit Flight Unit Utility High-capacity Battery Device Heat Sink Storage High-capacity Battery Processor Advanced Targeting Computer Protection Weapon Shielding Weapon Flak Cannon Energy Gun EM Pulse Gun Energy Cannon Light EM Pulse Cannon Ballistic Gun Assault Rifle Ballistic Cannon Flak Cannon Launcher Grenade Launcher Special Weapon Mining Laser Build | -11 -10 -9 ------- Run | Scr Mat Mat Slots Evolved 2 | . . 2 Power 1 | . . 1 Propulsion . | . . . Utility 1 | . . 1 Weapon . | . . . Parts Attached 37 | 7 6 24 Power 12 | 1 1 10 Engine 12 | 1 1 10 Core . | . . . Reactor . | . . . Propulsion 11 | 2 2 7 Treads 1 | . . 1 Leg 6 | 2 2 2 Wheel 2 | . . 2 Hover . | . . . Flight 2 | . . 2 Utility 6 | 2 1 3 Device 2 | 2 . . Storage 2 | . 1 1 Processor 1 | . . 1 Hackware . | . . . Protection 1 | . . 1 Artifact . | . . . Weapon 8 | 2 2 4 Energy Gun 1 | 1 . . Energy Cannon 2 | . . 2 Ballistic Gun 1 | 1 . . Ballistic Cannon 2 | . . 2 Launcher 1 | . 1 . Special Weapon 1 | . 1 . Impact Weapon . | . . . Slashing Weapon . | . . . Piercing Weapon . | . . . Special Melee Weapon . | . . . Unidentified Prototypes 1 | . . 1 Parts Lost 11 | . 4 7 Power 3 | . . 3 Propulsion 2 | . 1 1 Utility 2 | . . 2 Weapon 4 | . 3 1 Highest Loss Streak 5 | . 3 5 Average Slot Usage (%) 89 | . 97 81 Engine 16 | . 14 19 Leg 14 | . 26 3 Wheel 3 | . . 5 Flight 1 | . . 3 Device 7 | . 14 1 Storage 16 | . 13 19 Protection 4 | . . 8 Energy Gun 4 | . 9 . Energy Cannon 1 | . . 3 Ballistic Gun 6 | . 13 . Ballistic Cannon 7 | . . 14 Launcher 1 | . . 1 Special Weapon 1 | . 3 . Naked Turns . | . . . Heaviest Build 31 | 9 12 31 Greatest Support 20 | 20 20 20 Greatest Overweight (x) 10 | . 1 10 Average Overweight (x) . | . . 1 Largest Inventory Capacity 4 | 4 4 4 Average Capacity 4 | 4 4 4 Most Carried 4 | 4 4 4 Average Carried 2 | 2 3 . Final Capacity 4 | 4 4 4 Final Carried 4 | 4 2 1 Class Distribution -------------------- 85% | Mutant 14% | Scavenger-Mutant Dominant Class ---------------- Mutant | -10/Materials Mutant | -9/Materials Resources | -11 -10 -9 ----------- Run | Scr Mat Mat Matter Collected 1178 | 275 216 687 Remotely . | . . . Salvage Created 1861 | 119 677 1065 Parts 119 | 13 45 61 Haulers Intercepted 1 | . 1 . Recyclers Shooed 6 | . 4 2 Parts Field Recycled . | . . . Retrieved Matter . | . . . Parts Self-Destructed . | . . . Prevented . | . . . Kills | -11 -10 -9 ------- Run | Scr Mat Mat Combat Hostiles Destroyed 30 | 1 9 20 Guns 4 | . 4 . Cannons 21 | . 2 19 AOE 5 | 1 3 1 Classes Destroyed 11 | 3 3 5 Worker 7 | 1 4 2 Builder 7 | . 3 4 Tunneler 5 | 3 1 1 Hauler 1 | . 1 . Recycler 7 | . 2 5 Operator 2 | . . 2 Watcher 1 | . . 1 Swarmer 3 | . . 3 Grunt 22 | 1 9 12 Brawler 1 | . . 1 Sentry 4 | . . 4 Best Kill Streak 8 | 5 6 8 Combat Bots Only 6 | 1 3 6 Max Kills in Single Turn 2 | 2 2 1 Gunslinging . | . . . Exploded 2 | 1 2 1 Melee . | . . . Uniques/NPCs Destroyed . | . . . Combat | -11 -10 -9 -------- Run | Scr Mat Mat Damage Taken 1767 | 11 638 1118 Core 607 | . 206 401 Absorbed by Shields . | . . . Core Remaining (%) 58 | 100 17 . Volleys Fired 145 | 8 70 67 Largest 2 | 2 2 2 Hottest 120 | 60 120 112 Shots Fired 253 | 13 117 123 Gun 117 | 13 104 . Cannon 114 | . . 114 Launcher 13 | . 4 9 Special 9 | . 9 . Kinetic 159 | 5 66 88 Thermal 9 | . 9 . Explosive 13 | . 4 9 Electromagnetic 72 | 8 38 26 Robot Hit Streak 11 | 3 11 8 Robot Miss Streak 25 | 4 4 25 Penetration Max . | . . . Secondary Targets 1 | . 1 . Max Gunslinging Chain 1 | . 1 . Shots Hit Robots 176 | 6 74 96 Core Hits 116 | 5 34 77 Critical Hits 1 | . . 1 Critical Kills 1 | . . 1 Critical Parts Destroyed . | . . . Melee Attacks . | . . . Impact . | . . . Slashing . | . . . Piercing . | . . . Sneak Attacks . | . . . Combat Hostiles . | . . . Follow-up Attacks . | . . . Damage Inflicted 2876 | 111 1190 1575 Guns 908 | 90 818 . Cannons 1261 | . . 1261 Explosions 611 | 21 276 314 Melee . | . . . Ramming . | . . . Kinetic 1450 | 12 478 960 Thermal 213 | 21 139 53 Explosive 381 | . 233 148 Electromagnetic 832 | 78 340 414 Impact . | . . . Slashing . | . . . Piercing . | . . . Highest Corruption . | . . . Average Corruption . | . . . Corruption Purged . | . . . Overload Shots . | . . . Overflow Damage 28 | . 13 15 Projectiles . | . . . Explosions 28 | . 13 15 Melee . | . . . Knockbacks 14 | . . 14 Impact . | . . . Kinetic 14 | . . 14 Secondary . | . . . Self-Inflicted Damage 156 | . 103 53 Shots 6 | . 4 2 Rammed . | . . . Targets Rammed . | . . . Kicked . | . . . Crushed . | . . . Highest Temperature 318 | . 3 318 Average Temperature 104 | . 3 106 Received Heat Transfer 627 | 6 279 342 Effects 2 | . . 2 Energy Bleed 1 | . . 1 Interference 1 | . . 1 Siege Activations . | . . . Robots Corrupted . | . . . Combat Hostiles . | . . . Parts Fried 1 | . . 1 Impact Corruptions . | . . . Robots Melted . | . . . Combat Hostiles . | . . . Parts Melted . | . . . Heat Transferred 350 | 50 300 . Parts Sabotaged . | . . . Parts Stolen . | . . . Parts Stripped . | . . . Power Chain Reactions 5 | 1 1 3 Missiles Intercepted . | . . . Alert | -11 -10 -9 ------- Run | Scr Mat Mat Peak Influence 446 | 40 206 446 Average Influence 151 | 11 81 236 Maximum Alert Level 2 | . 1 2 Low Security (%) 61 | 100 95 25 Level 1 35 | . 4 68 Level 2 2 | . . 5 Level 3 . | . . . Level 4 . | . . . Level 5 . | . . . High Security . | . . . Max Security . | . . . Squads Dispatched 11 | . 5 6 Investigation 4 | . 2 2 Extermination . | . . . Reinforcement 7 | . 3 4 Assault . | . . . Garrison . | . . . Intercept . | . . . Construction Impeded 1 | . . 1 Haulers Reinforced . | . . . Stealth | -11 -10 -9 --------- Run | Scr Mat Mat Distress Signals 5 | . 2 3 Communications Jammed . | . . . Distress Signals . | . . . Times Spotted 43 | 1 15 27 Peak Tracking Total 5 | 1 5 4 Tactical Retreats 2 | . 1 1 Traps | -11 -10 -9 ------- Run | Scr Mat Mat Traps Triggered 2 | . 1 1 Indirectly . | . . . Trap Hack Attempts . | . . . Triggered . | . . . Disarmed . | . . . Reprogrammed . | . . . Reused . | . . . Traps Extracted . | . . . Installed . | . . . Triggered . | . . . Machines | -11 -10 -9 ---------- Run | Scr Mat Mat Machines Disabled 4 | . . 4 Max in Single Turn 2 | . . 2 Machines Sabotaged . | . . . Garrisons Compromised . | . . . Overloaded Fab Kills . | . . . Fab Network Shutdowns . | . . . Hacking | -11 -10 -9 --------- Run | Scr Mat Mat Machines Accessed 3 | . 2 1 Terminals 2 | . 1 1 Fabricators . | . . . Repair Stations . | . . . Recycling Units 1 | . 1 . Scanalyzers . | . . . Garrison Access . | . . . Total Hacks 9 | . 6 3 Successful 5 | . 2 3 Failed 4 | . 4 . Catastrophic . | . . . Database Lockouts . | . . . Manual . | . . . Terminals 8 | . 5 3 Fabricators . | . . . Repair Stations . | . . . Recycling Units 1 | . 1 . Scanalyzers . | . . . Garrison Access . | . . . Terminal Hacks 4 | . 1 3 Record 4 | . 1 3 Fabricator Hacks . | . . . Repair Station Hacks . | . . . Recycling Unit Hacks 1 | . 1 . Report Inventory 1 | . 1 . Scanalyzer . | . . . Garrison Access Hacks . | . . . Unauthorized Hacks . | . . . Terminals . | . . . Fabricators . | . . . Repair Stations . | . . . Recycling Units . | . . . Scanalyzers . | . . . Garrison Access . | . . . Data Cores Recovered . | . . . Used . | . . . Hacking Detections 2 | . 1 1 Full Trace Events 2 | . 1 1 Feedback Events . | . . . Feedback Blocked . | . . . Robot Schematics Acquired . | . . . Robots Built . | . . . Matter . | . . . Time . | . . . Total Robot Build Rating . | . . . Part Schematics Acquired . | . . . Parts Built . | . . . Matter . | . . . Time . | . . . Total Part Build Rating . | . . . Parts Repaired . | . . . Time . | . . . Parts Recycled . | . . . Recycled Matter . | . . . Retrieved Matter . | . . . Retrieved Components . | . . . Parts Scanalyzed . | . . . Part Schematics Acquired . | . . . Parts Damaged . | . . . Bothacking | -11 -10 -9 ------------ Run | Scr Mat Mat Used RIF Installer . | . . . Robots Hacked . | . . . Non-combat . | . . . Combat . | . . . Robot Hacks Applied . | . . . Relay Couplers Released . | . . . Robots Rewired . | . . . Allies Hacked . | . . . Hacks Repelled . | . . . Allies | -11 -10 -9 -------- Run | Scr Mat Mat Total Allies . | . . . Largest Group . | . . . Highest-Rated Group . | . . . Highest-Rated Ally . | . . . Total Orders . | . . . Ally Attacks . | . . . Total Damage . | . . . Kills . | . . . Allies Corrupted . | . . . Allies Melted . | . . . Intel | -11 -10 -9 ------- Run | Scr Mat Mat Robot Analysis Total . | . . . Derelict Logs Recovered . | . . . Drone Launches . | . . . Drone Recoveries . | . . . Exploration | -11 -10 -9 ------------- Run | Scr Mat Mat Turns Passed 1298 | 128 531 639 Spaces Moved 572 | 87 258 227 Core 47 | 21 . 26 Treads 15 | . . 15 Legs 382 | 66 258 58 Wheels 100 | . . 100 Hover . | . . . Flight 28 | . . 28 Fastest Speed 50 | 50 120 90 Average Speed 139 | 103 121 174 Slowest Speed 600 | 120 150 600 Overloaded Moves . | . . . Propulsion Burnouts . | . . . Robots Hopped . | . . . Cave-ins Triggered . | . . . Exploration Rate (%) 23 | 5 46 19 Regions Visited 2 Branch Regions . Pre-discovered Areas . | . . . Known Exits Taken . | . . . Unknown Exits Taken 2 | 1 1 . Scrap Searched . | . . . Spaces Dug 7 | . . 7 Terrain Destroyed 88 | . 38 50 Melee . | . . . Projectile 4 | . 4 . AOE 84 | . 34 50 Actions | -11 -10 -9 --------- Run | Scr Mat Mat Total 802 | 112 341 349 Wait 1 | . 1 . Move 570 | 86 257 227 Hop . | . . . Pick Up 32 | 10 2 20 Fast Attach 5 | 2 3 . Attach 24 | 5 2 17 Detach 1 | . . 1 Swap 8 | . 1 7 Drop 16 | 1 5 10 Fire 145 | 8 70 67 Melee . | . . . Ram . | . . . Kick . | . . . Crush . | . . . Escape Stasis . | . . . Rewire . | . . . Trap . | . . . Miscellaneous . | . . . Route ------- -11/Scrapyard -10/Materials -9/Materials History --------- Turn | Location | Event 2 | -11/Scrapyard | Met Revision 17 79 | -11/Scrapyard | Discovered new exit (range 8) 129 | -11/Scrapyard | Entered Materials 311 | -10/Materials | Build established: Mutant 567 | -10/Materials | Discovered new exit (range 13) 643 | -10/Materials | Core integrity fell below 50% 658 | -10/Materials | Core integrity fell below 20% 660 | -10/Materials | Entered another Materials area 660 | -9/Materials | Evolved 2 slots: Power x1, Utility x1 664 | -9/Materials | Lost 3 parts (1n2w) 810 | -9/Materials | Lost 5 parts (2p1n1u1w) 950 | -9/Materials | Core integrity fell below 50% 1275 | -9/Materials | Core integrity fell below 20% 1299 | -9/Materials | Destroyed by G-34 Mercenary with Small Laser Last Messages --------------- T-07 Excavator is excavating. G-34 Mercenary destroyed. Lgt. Ion Engine destroyed. Y-45 Defender destroyed. G-34 Mercenary destroyed. ALERT: Hostiles spotted, dispatching reinforcements to Terminal M010. Y-45 Defender destroyed. G-34 Mercenary destroyed. U-05 Engineer builds a Wall. G-34 Mercenary destroyed. Overheating: Energy bleed (-129). U-05 Engineer lays Concrete. The Adv. Targeting Computer is a processor, a type of utility that is destroyed if removed (these are marked with a colon in the parts list, as a reminder). U-05 Engineer lays Concrete. Overheating: System interference. Flak Cannon temporarily disabled. ALERT: Construction progress impeded, dispatching reinforcements to local area. Map ----- +----------------------------------------------------+ | ????????????????????????????????????????########## | | ????????????????????????????????????????# """T""" | | ?????????????########???????????????????# | | ?????????????# #???????????????????#]] | | ?????????????# #???????????????????# ! """" ! | | ?????????????# """ #???????????????????# "" | | ?????????????# """ #???????????????????# | | ?????????????# """ #???????????????????# | | ?????????????# #######??????######## % | | ?????????????####+### ######## ##########+### | | ?????????????# % % | | ?????????????# % | | ?????????????# =%* =!! | | ?????????????####+### ######### +########+#### | | ?????????????# #######??????# # * # | | ?????????????# #????????????# # # | | ?????????????# """ #????????????# """ ### # | | ?????????????# """ #????????????# """ #?# | | ?????????????# """ #????????????# """ #?# # | | ?????????????# #????????????# #?# # | | ?????????????########????????############?# # | | ???????????????????########??# #?## # | | ???????????????????#//!!!!#??# ! ###" # | | ???????????????????#//!!! #??# "T" ## =* # | | ???????????????????# #??# """ ####% * # | | ???????????????????##### @#########+####### * # | | ???????????????????????# !! == + # | | ???????????????????????# %####################### | | ???????????????????????# #?????????????????????? | | ???????????????????????# #?????????????????????? | | ???????????????????????# #?????????????????????? | | ???????????????????????# #?????????????????????? | | ???????????????????????# #?????????????????????? | | ??????????????????????? !!;?????????????????????? | | ??????????????????????## %%#?????????????????????? | | ???????????????????????#[==#?????????????????????? | | ???????????????????????!g%=t?????????????????????? | | ???????????????????????=!g ?????????????????????? | | ??????????????????????? ?????????????????????? | | ??????????????????????? ! ?????????????????????? | | ??????????????????????# =%! ?????????????????????? | | ???????????????????????# #?????????????????????? | | ?????????????????????????????????????????????????? | | ?????????????????????????????????????????????????? | | ?????????????????????????????????????????????????? | | ?????????????????????????????????????????????????? | | ?????????????????????????????????????????????????? | | ?????????????????????????????????????????????????? | | ?????????????????????????????????????????????????? | | ?????????????????????????????????????????????????? | +----------------------------------------------------+ Best States ------------- Heat Dissipation 38 Energy Generation 19 Energy Capacity 815 Matter Stores 320 Matter Capacity 400 Sight Range 16 Terrain Scan Range 16 Terrain Scan Density 10 Weapon Shielding 33 Evasion (%) 50 Recoil Reduction 1 Item Schematics ----------------- None Robot Schematics ------------------ None Fabricated ------------ Nothing Alien Tech Used ----------------- None Achievements -------------- Let's See Who's Tougher More Dakka Please Risk Taker Challenges ------------ None Game ------ Seed NeutronComponentCapacitor Manual? 0 Play Time 00:24:52 Cumulative 1.5 hours Start 2020.05.18 @ 23:07:34 End 2020.05.19 @ 00:11:58 Sessions 3 Manual Loads 0 Difficulty Rogue Special Mode None Game No. 3 Rogue 3 Adventurer 0 Explorer 0 Win Type - Total 0 Types 0/0/0/0/0/0/0 Lore% 1 Gallery% 3 Achievement% 4 Wizard Run 0 Options --------- ASCII 0 Keyboard 0 Movement Mouse Keybinds 0 Fullscreen 1 Font 24/Smallcaps Map View 76x50 Tactical HUD 0 Map Filters NONE Filters NONE Steam 1 RUN: ae7ae326-00c2-4404-bb1c-1eb65251125d